fUST/lending_fUST_20260607
["ID","MTS","AMOUNT","RATE_DAILY","PERIOD"]
[424370879,1780804240000,-500.0,0.00019178,2]
[424370874,1780804240000,-4588.28,0.00019178,2]
[424370890,1780804240000,-1546.36,0.00019178,2]
[424370873,1780804240000,-500.0,0.00019178,2]
[424370875,1780804240000,-500.0,0.00019178,2]
[424370844,1780804240000,-500.0,0.00019178,2]
[424370846,1780804240000,-500.0,0.00019178,2]
[424370848,1780804240000,-1929.68,0.00019178,2]
[424370845,1780804240000,-637.74676301,0.00019178,2]
[424370847,1780804240000,-1148.08,0.00019178,2]
[424370842,1780804240000,-571.99039258,0.00019178,2]
[424370850,1780804240000,-500.0,0.00019178,2]
[424370851,1780804240000,-606.06395511,0.00019178,2]
[424370853,1780804240000,-3060.99,0.00019178,2]
[424370849,1780804240000,-500.0,0.00019178,2]
[424370854,1780804240000,-1219.25,0.00019178,2]
[424370856,1780804240000,-500.0,0.00019178,2]
[424370855,1780804240000,-719.05,0.00019178,2]
[424370860,1780804240000,-780.94,0.00019178,2]
[424370852,1780804240000,-500.0,0.00019178,2]
[424370865,1780804240000,-500.0,0.00019178,2]
[424370858,1780804240000,-500.0,0.00019178,2]
[424370871,1780804240000,-403.52710864,0.00019178,2]
[424370870,1780804240000,-582.2709064,0.00019178,2]
[424370869,1780804240000,-500.0,0.00019178,2]
[424370867,1780804240000,-500.0,0.00019178,2]
[424370863,1780804240000,-500.0,0.00019178,2]
[424370872,1780804240000,-500.0,0.00019178,2]
[424370868,1780804240000,-500.0,0.00019178,2]
[424370866,1780804240000,-1234.08,0.00019178,2]
[424370864,1780804240000,-500.0,0.00019178,2]
[424370857,1780804240000,-500.0,0.00019178,2]
[424370859,1780804240000,-500.0,0.00019178,2]
[424370862,1780804240000,-500.0,0.00019178,2]
[424370861,1780804240000,-500.0,0.00019178,2]
[424370927,1780804241000,-817.07,0.00019178,2]
[424370930,1780804241000,-500.0,0.00019178,2]
[424370929,1780804241000,-500.0,0.00019178,2]
[424370938,1780804241000,-770.58,0.00019178,2]
[424370931,1780804241000,-2009.54,0.00019178,2]
[424370926,1780804241000,-500.0,0.00019178,2]
[424370928,1780804241000,-500.0,0.00019178,2]
[424370933,1780804241000,-500.0,0.00019178,2]
[424370940,1780804241000,-2254.49,0.00019178,2]
[424370935,1780804241000,-543.85,0.00019178,2]
[424370936,1780804241000,-500.0,0.00019178,2]
[424370932,1780804241000,-500.0,0.00019178,2]
[424370937,1780804241000,-500.0,0.00019178,2]
[424370939,1780804241000,-500.0,0.00019178,2]
[424370925,1780804241000,-500.0,0.00019178,2]
[424370934,1780804241000,-743.96,0.00019178,2]
[424370924,1780804241000,-557.67,0.00019178,2]
[424370908,1780804241000,-1304.29,0.00019178,2]
[424370920,1780804241000,-6679.57,0.00019178,2]
[424370941,1780804241000,-552.38459396,0.00019178,2]
[424370907,1780804241000,-956.37,0.00019178,2]
[424370909,1780804241000,-533.69207095,0.00019178,2]
[424370910,1780804241000,-500.0,0.00019178,2]
[424370911,1780804241000,-959.11,0.00019178,2]
[424370917,1780804241000,-500.0,0.00019178,2]
[424370912,1780804241000,-1841.85,0.00019178,2]
[424370913,1780804241000,-500.0,0.00019178,2]
[424370914,1780804241000,-594.74,0.00019178,2]
[424370916,1780804241000,-500.0,0.00019178,2]
[424370915,1780804241000,-1458.48,0.00019178,2]
[424370918,1780804241000,-1000.0,0.00019178,2]
[424370919,1780804241000,-500.0,0.00019178,2]
[424370922,1780804241000,-500.0,0.00019178,2]
[424370923,1780804241000,-500.0,0.00019178,2]
[424370921,1780804241000,-500.0,0.00019178,2]
[424370942,1780804241000,-1030.2,0.00019178,2]
[424370970,1780804241000,-500.0,0.00019178,2]
[424370947,1780804241000,-500.0,0.00019178,2]
[424370965,1780804241000,-500.0,0.00019178,2]
[424370963,1780804241000,-6982.77,0.00019178,2]
[424370943,1780804241000,-675.56,0.00019178,2]
[424370964,1780804241000,-1552.12,0.00019178,2]
[424370968,1780804241000,-500.0,0.00019178,2]
[424370972,1780804241000,-500.0,0.00019178,2]
[424370971,1780804241000,-500.0,0.00019178,2]
[424370969,1780804241000,-500.0,0.00019178,2]
[424370974,1780804241000,-854.38,0.00019178,2]
[424370975,1780804241000,-500.0,0.00019178,2]
[424370973,1780804241000,-500.0,0.00019178,2]
[424370976,1780804241000,-500.0,0.00019178,2]
[424370977,1780804241000,-553.19706233,0.00019178,2]
[424370978,1780804241000,-1408.24293767,0.00019178,2]
[424370979,1780804241000,-781.27072681,0.00019178,2]
[424370966,1780804241000,-784.4,0.00019178,2]
[424370960,1780804241000,-223.66020733,0.00019178,2]
[424370967,1780804241000,-321.20812234,0.00019178,2]
[424370961,1780804241000,-500.0,0.00019178,2]
[424370945,1780804241000,-747.8,0.00019178,2]
[424370946,1780804241000,-500.0,0.00019178,2]
[424370948,1780804241000,-500.0,0.00019178,2]
[424370962,1780804241000,-500.0,0.00019178,2]
[424370949,1780804241000,-500.0,0.00019178,2]
[424370950,1780804241000,-500.0,0.00019178,2]
[424370952,1780804241000,-500.0,0.00019178,2]
[424370953,1780804241000,-500.0,0.00019178,2]
[424370944,1780804241000,-500.0,0.00019178,2]
[424370951,1780804241000,-2362.75,0.00019178,2]
[424370955,1780804241000,-500.0,0.00019178,2]
[424370957,1780804241000,-500.0,0.00019178,2]
[424370958,1780804241000,-594.17,0.00019178,2]
[424370959,1780804241000,-86303.14,0.00019178,2]
[424370956,1780804241000,-500.0,0.00019178,2]
[424370954,1780804241000,-500.0,0.00019178,2]
[424371008,1780804243000,-500.0,0.00019178,2]
[424371007,1780804243000,-500.0,0.00019178,2]
[424371006,1780804243000,-500.0,0.00019178,2]
[424371005,1780804243000,-363.7929022,0.00019178,2]
[424371000,1780804243000,-500.0,0.00019178,2]
[424371003,1780804243000,-436.36927319,0.00019178,2]
[424371002,1780804243000,-63.63072681,0.00019178,2]
[424370998,1780804243000,-856.36927319,0.00019178,2]
[424371004,1780804243000,-500.0,0.00019178,2]
[424371011,1780804243000,-559.02519097,0.00019178,2]
[424371009,1780804243000,-500.0,0.00019178,2]
[424371012,1780804243000,-500.0,0.00019178,2]
[424371014,1780804243000,-500.0,0.00019178,2]
[424371018,1780804243000,-500.0,0.00019178,2]
[424371013,1780804243000,-1444.7,0.00019178,2]
[424371015,1780804243000,-589.12773762,0.00019178,2]
[424371016,1780804243000,-16.27226238,0.00019178,2]
[424371019,1780804243000,-11900.0,0.00019178,2]
[424371021,1780804243000,-500.0,0.00019178,2]
[424371020,1780804243000,-1648.7,0.00019178,2]
[424371022,1780804243000,-811.37,0.00019178,2]
[424371017,1780804243000,-500.0,0.00019178,2]
[424371010,1780804243000,-719.37,0.00019178,2]
[424371024,1780804244000,-500.0,0.00019178,2]
[424371025,1780804244000,-2058.63,0.00019178,2]
[424371023,1780804244000,-2352.34,0.00019178,2]
[424371026,1780804244000,-616.39,0.00019178,2]
[424371028,1780804244000,-38.02773762,0.00019178,2]
[424371030,1780804244000,-4290.81178096,0.00019178,2]
[424371029,1780804244000,-466.24226238,0.00019178,2]
[424371027,1780804244000,-500.0,0.00019178,2]
[424371059,1780804246000,-280.2939363,0.00019178,2]
[424371068,1780804247000,-500.0,0.00019178,2]
[424371069,1780804247000,-500.0,0.00019178,2]
[424371070,1780804247000,-500.0,0.00019178,2]
[424371072,1780804247000,-500.0,0.00019178,2]
[424371067,1780804247000,-500.0,0.00019178,2]
[424371066,1780804247000,-1554.09,0.00019178,2]
[424371063,1780804247000,-738.78,0.00019178,2]
[424371065,1780804247000,-500.0,0.00019178,2]
[424371061,1780804247000,-500.0,0.00019178,2]
[424371062,1780804247000,-500.0,0.00019178,2]
[424371060,1780804247000,-1026.59428274,0.00019178,2]
[424371074,1780804247000,-8857.47,0.00019178,2]
[424371071,1780804247000,-500.0,0.00019178,2]
[424371064,1780804247000,-500.0,0.00019178,2]
[424371076,1780804247000,-1289.89,0.00019178,2]
[424371087,1780804247000,-500.0,0.00019178,2]
[424371085,1780804247000,-5792.27,0.00019178,2]
[424371082,1780804247000,-500.0,0.00019178,2]
[424371088,1780804247000,-282.2987642,0.00019178,2]
[424371086,1780804247000,-3985.24,0.00019178,2]
[424371084,1780804247000,-13939.63,0.00019178,2]
[424371083,1780804247000,-500.0,0.00019178,2]
[424371081,1780804247000,-1159.61,0.00019178,2]
[424371080,1780804247000,-500.0,0.00019178,2]
[424371075,1780804247000,-500.0,0.00019178,2]
[424371073,1780804247000,-514.28,0.00019178,2]
[424371079,1780804247000,-561.24039791,0.00019178,2]
[424371077,1780804247000,-500.0,0.00019178,2]
[424371078,1780804247000,-500.0,0.00019178,2]
[424371096,1780804460000,16.809073,9.703e-05,2]
[424371101,1780804615000,-1322.05,9.703e-05,2]
[424371102,1780804627000,-500.0,9.703e-05,2]
[424371103,1780804639000,-500.0,9.703e-05,2]
[424371104,1780804652000,-170.13698957,9.703e-05,2]
[424371105,1780804705000,-976.44,9.703e-05,2]
[424371106,1780804717000,-4020.09,9.703e-05,2]
[424371107,1780804730000,-312.53637705,8e-05,2]
[424371108,1780804782000,-3.47,9.703e-05,2]
[424371109,1780804836000,-449.18310574,9.798e-05,2]
[424371110,1780804889000,-544.2538891,9.797e-05,2]
[424371111,1780804909000,2657.93,0.00016,120]
[424371115,1780805139000,-357.26982633,9.703e-05,2]
[424371118,1780805240000,755.5518481,0.00024922,120]
[424371119,1780805271000,-500.0,9.702e-05,2]
[424371120,1780805324000,-380.97772237,9.701e-05,2]
[424371140,1780805354000,-500.0,9.701e-05,2]
[424371138,1780805354000,-500.0,9.701e-05,2]
[424371137,1780805354000,-500.0,9.701e-05,2]
[424371136,1780805354000,-500.0,9.701e-05,2]
[424371135,1780805354000,-500.0,9.701e-05,2]
[424371133,1780805354000,-500.0,9.701e-05,2]
[424371134,1780805354000,-500.0,9.701e-05,2]
[424371132,1780805354000,-500.0,9.701e-05,2]
[424371141,1780805354000,-500.0,9.701e-05,2]
[424371131,1780805354000,-480.42492488,9.701e-05,2]
[424371130,1780805354000,-500.0,9.701e-05,2]
[424371128,1780805354000,-500.0,9.701e-05,2]
[424371127,1780805354000,-500.0,9.701e-05,2]
[424371125,1780805354000,-500.0,9.701e-05,2]
[424371124,1780805354000,-500.0,9.701e-05,2]
[424371126,1780805354000,-222.25960161,9.701e-05,2]
[424371123,1780805354000,-500.0,9.701e-05,2]
[424371122,1780805354000,-500.0,9.701e-05,2]
[424371121,1780805354000,-500.0,9.701e-05,2]
[424371129,1780805354000,-500.0,9.701e-05,2]
[424371139,1780805354000,-500.0,9.701e-05,2]
[424371152,1780805354000,-500.0,9.701e-05,2]
[424371143,1780805354000,-589.97280483,9.701e-05,2]
[424371163,1780805354000,-500.0,9.701e-05,2]
[424371162,1780805354000,-500.0,9.701e-05,2]
[424371161,1780805354000,-500.0,9.701e-05,2]
[424371159,1780805354000,-500.0,9.701e-05,2]
[424371160,1780805354000,-500.0,9.701e-05,2]
[424371142,1780805354000,-500.0,9.701e-05,2]
[424371157,1780805354000,-584.68043947,9.701e-05,2]
[424371155,1780805354000,-500.0,9.701e-05,2]
[424371156,1780805354000,-500.0,9.701e-05,2]
[424371158,1780805354000,-500.0,9.701e-05,2]
[424371154,1780805354000,-500.0,9.701e-05,2]
[424371150,1780805354000,-500.0,9.701e-05,2]
[424371149,1780805354000,-500.0,9.701e-05,2]
[424371151,1780805354000,-500.0,9.701e-05,2]
[424371148,1780805354000,-500.0,9.701e-05,2]
[424371147,1780805354000,-500.0,9.701e-05,2]
[424371145,1780805354000,-500.0,9.701e-05,2]
[424371146,1780805354000,-500.0,9.701e-05,2]
[424371144,1780805354000,-500.0,9.701e-05,2]
[424371153,1780805354000,-500.0,9.701e-05,2]
[424371171,1780805355000,-300.0,9.995e-05,2]
[424371170,1780805355000,-500.0,9.794e-05,2]
[424371168,1780805355000,-5000.0,9.703e-05,2]
[424371164,1780805355000,-500.0,9.701e-05,2]
[424371166,1780805355000,-500.0,9.701e-05,2]
[424371167,1780805355000,-499.99999999,9.701e-05,2]
[424371165,1780805355000,-500.0,9.701e-05,2]
[424371169,1780805355000,-701.25158785,9.703e-05,2]
[424371173,1780805355000,-300.0,9.995e-05,2]
[424371174,1780805355000,-300.0,9.995e-05,2]
[424371176,1780805355000,-300.0,9.995e-05,2]
[424371184,1780805355000,-204.26230543,9.995e-05,2]
[424371181,1780805355000,-300.0,9.995e-05,2]
[424371182,1780805355000,-300.0,9.995e-05,2]
[424371180,1780805355000,-300.0,9.995e-05,2]
[424371183,1780805355000,-300.0,9.995e-05,2]
[424371179,1780805355000,-300.0,9.995e-05,2]
[424371177,1780805355000,-300.0,9.995e-05,2]
[424371175,1780805355000,-300.0,9.995e-05,2]
[424371178,1780805355000,-300.0,9.995e-05,2]
[424371172,1780805355000,-300.0,9.995e-05,2]
[424371185,1780805377000,-500.0,9.895e-05,2]
[424371187,1780805378000,-490.9020246,9.895e-05,2]
[424371186,1780805378000,-3046.52364169,9.895e-05,2]
[424371188,1780805390000,-500.0,9.895e-05,2]
[424371189,1780805402000,-393.02369893,9.895e-05,2]
[424371190,1780805414000,-69.55063478,9.895e-05,2]
[424371205,1780805432000,-300.0,9.995e-05,2]
[424371204,1780805432000,-95.73769457,9.995e-05,2]
[424371206,1780805432000,-324.75496277,9.995e-05,2]
[424371216,1780805438000,-275.24503723,9.995e-05,2]
[424371217,1780805438000,-224.75496277,9.995e-05,2]
[424371223,1780805438000,-195.6931377,0.00013793,2]
[424371224,1780805438000,-1000.0,0.00014634,2]
[424371220,1780805438000,-720.0,0.00010994,2]
[424371222,1780805438000,-1000.0,0.00013303,2]
[424371218,1780805438000,-4775.24503723,9.995e-05,2]
[424371231,1780805438000,-1000.0,0.00017707,2]
[424371221,1780805438000,-864.0,0.00012094,2]
[424371219,1780805438000,-631.54372874,0.0001,2]
[424371225,1780805438000,-244.0,0.00014634,2]
[424371226,1780805438000,-175.661697,0.00015068,2]
[424371227,1780805438000,-1000.0,0.00015681,2]
[424371230,1780805438000,-166.77,0.00016573,2]
[424371232,1780805438000,-791.0,0.00017707,2]
[424371239,1780805438000,-2791.49502539,0.00018699,2]
[424371236,1780805438000,-188.80788247,0.000185,2]
[424371233,1780805438000,-272.85000594,0.00017872,2]
[424371246,1780805438000,-1811.92,0.00018799,2]
[424371247,1780805438000,-1811.92,0.00018799,2]
[424371240,1780805438000,-1811.92,0.00018799,2]
[424371243,1780805438000,-1811.92,0.00018799,2]
[424371244,1780805438000,-1811.92,0.00018799,2]
[424371242,1780805438000,-1811.92,0.00018799,2]
[424371245,1780805438000,-1811.92,0.00018799,2]
[424371237,1780805438000,-420.63,0.0001863,2]
[424371238,1780805438000,-1811.92,0.00018699,2]
[424371235,1780805438000,-271.47,0.00018485,2]
[424371234,1780805438000,-309.06858794,0.00018285,2]
[424371229,1780805438000,-492.0,0.00016097,2]
[424371228,1780805438000,-1000.0,0.00016097,2]
[424371241,1780805438000,-1811.92,0.00018799,2]
[424371279,1780805439000,-500.0,0.00019178,2]
[424371280,1780805439000,-1047.97,0.00019178,2]
[424371278,1780805439000,-500.0,0.00019178,2]
[424371277,1780805439000,-500.0,0.00019178,2]
[424371274,1780805439000,-500.0,0.00019178,2]
[424371275,1780805439000,-500.0,0.00019178,2]
[424371272,1780805439000,-23141.7887339,0.00019178,2]
[424371281,1780805439000,-1280.41,0.00019178,2]
[424371276,1780805439000,-500.0,0.00019178,2]
[424371282,1780805439000,-500.0,0.00019178,2]
[424371288,1780805439000,-500.0,0.00019178,2]
[424371283,1780805439000,-500.0,0.00019178,2]
[424371285,1780805439000,-500.0,0.00019178,2]
[424371291,1780805439000,-500.0,0.00019178,2]
[424371290,1780805439000,-500.0,0.00019178,2]
[424371289,1780805439000,-991.61,0.00019178,2]
[424371286,1780805439000,-500.0,0.00019178,2]
[424371269,1780805439000,-4379.0,0.00019,2]
[424371287,1780805439000,-500.0,0.00019178,2]
[424371292,1780805439000,-500.0,0.00019178,2]
[424371284,1780805439000,-3286.42,0.00019178,2]
[424371270,1780805439000,-500.0,0.00019178,2]
[424371262,1780805439000,-1812.03026004,0.00018799,2]
[424371266,1780805439000,-447.454,0.00018927,2]
[424371252,1780805439000,-1811.92,0.00018799,2]
[424371248,1780805439000,-1811.92,0.00018799,2]
[424371249,1780805439000,-1811.92,0.00018799,2]
[424371251,1780805439000,-1811.92,0.00018799,2]
[424371253,1780805439000,-1811.92,0.00018799,2]
[424371250,1780805439000,-1811.92,0.00018799,2]
[424371254,1780805439000,-1811.92,0.00018799,2]
[424371255,1780805439000,-1811.92,0.00018799,2]
[424371257,1780805439000,-1811.92,0.00018799,2]
[424371271,1780805439000,-500.0,0.00019178,2]
[424371259,1780805439000,-1811.92,0.00018799,2]
[424371258,1780805439000,-1811.92,0.00018799,2]
[424371260,1780805439000,-1811.92,0.00018799,2]
[424371261,1780805439000,-1811.92,0.00018799,2]
[424371294,1780805439000,-500.0,0.00019178,2]
[424371263,1780805439000,-420.63,0.00018904,2]
[424371268,1780805439000,-186.0,0.00018927,2]
[424371267,1780805439000,-385.97,0.00018927,2]
[424371265,1780805439000,-3632.0,0.00018927,2]
[424371264,1780805439000,-2207.0,0.00018927,2]
[424371256,1780805439000,-1811.92,0.00018799,2]
[424371293,1780805439000,-500.0,0.00019178,2]
[424371273,1780805439000,-500.0,0.00019178,2]
[424371299,1780805439000,-637.02151323,0.00019178,2]
[424371321,1780805439000,-3161.57,0.00019178,2]
[424371323,1780805439000,-500.0,0.00019178,2]
[424371322,1780805439000,-500.0,0.00019178,2]
[424371324,1780805439000,-500.0,0.00019178,2]
[424371325,1780805439000,-954.88,0.00019178,2]
[424371327,1780805439000,-500.0,0.00019178,2]
[424371328,1780805439000,-500.0,0.00019178,2]
[424371326,1780805439000,-500.0,0.00019178,2]
[424371329,1780805439000,-2126.46,0.00019178,2]
[424371330,1780805439000,-500.0,0.00019178,2]
[424371331,1780805439000,-595.83272545,0.00019178,2]
[424371333,1780805439000,-500.0,0.00019178,2]
[424371334,1780805439000,-500.0,0.00019178,2]
[424371335,1780805439000,-1557.72,0.00019178,2]
[424371338,1780805439000,-500.0,0.00019178,2]
[424371337,1780805439000,-500.0,0.00019178,2]
[424371336,1780805439000,-500.0,0.00019178,2]
[424371340,1780805439000,-500.0,0.00019178,2]
[424371339,1780805439000,-2723.81,0.00019178,2]
[424371295,1780805439000,-1004.68,0.00019178,2]
[424371341,1780805439000,-500.0,0.00019178,2]
[424371319,1780805439000,-500.0,0.00019178,2]
[424371318,1780805439000,-340.52551472,0.00019178,2]
[424371332,1780805439000,-500.0,0.00019178,2]
[424371317,1780805439000,-1100.24,0.00019178,2]
[424371300,1780805439000,-3738.52,0.00019178,2]
[424371296,1780805439000,-500.0,0.00019178,2]
[424371320,1780805439000,-500.0,0.00019178,2]
[424371297,1780805439000,-500.0,0.00019178,2]
[424371298,1780805439000,-557.13,0.00019178,2]
[424371301,1780805439000,-694.34,0.00019178,2]
[424371302,1780805439000,-604.74,0.00019178,2]
[424371303,1780805439000,-500.0,0.00019178,2]
[424371306,1780805439000,-864.12,0.00019178,2]
[424371305,1780805439000,-500.0,0.00019178,2]
[424371310,1780805439000,-500.0,0.00019178,2]
[424371304,1780805439000,-500.0,0.00019178,2]
[424371308,1780805439000,-621.88668787,0.00019178,2]
[424371307,1780805439000,-500.0,0.00019178,2]
[424371309,1780805439000,-500.0,0.00019178,2]
[424371311,1780805439000,-898.07,0.00019178,2]
[424371313,1780805439000,-533.18,0.00019178,2]
[424371312,1780805439000,-1989.71,0.00019178,2]
[424371314,1780805439000,-577.18021756,0.00019178,2]
[424371315,1780805439000,-500.0,0.00019178,2]
[424371316,1780805439000,-500.0,0.00019178,2]
[424371379,1780805440000,-500.0,0.00019178,2]
[424371375,1780805440000,-919.15,0.00019178,2]
[424371378,1780805440000,-385.57003779,0.00019178,2]
[424371377,1780805440000,-500.0,0.00019178,2]
[424371376,1780805440000,-500.0,0.00019178,2]
[424371371,1780805440000,-3975.84,0.00019178,2]
[424371372,1780805440000,-161.12056351,0.00019178,2]
[424371373,1780805440000,-500.0,0.00019178,2]
[424371381,1780805440000,-500.0,0.00019178,2]
[424371374,1780805440000,-500.0,0.00019178,2]
[424371383,1780805440000,-500.0,0.00019178,2]
[424371393,1780805440000,-500.0,0.00019178,2]
[424371388,1780805440000,-500.0,0.00019178,2]
[424371386,1780805440000,-500.0,0.00019178,2]
[424371385,1780805440000,-500.0,0.00019178,2]
[424371390,1780805440000,-500.0,0.00019178,2]
[424371389,1780805440000,-500.0,0.00019178,2]
[424371387,1780805440000,-934.89,0.00019178,2]
[424371384,1780805440000,-622.67,0.00019178,2]
[424371391,1780805440000,-500.0,0.00019178,2]
[424371404,1780805440000,-500.0,0.00019178,2]
[424371400,1780805440000,-506.94135155,0.00019178,2]
[424371370,1780805440000,-660.43,0.00019178,2]
[424371396,1780805440000,-500.0,0.00019178,2]
[424371382,1780805440000,-500.0,0.00019178,2]
[424371369,1780805440000,-500.0,0.00019178,2]
[424371346,1780805440000,-500.0,0.00019178,2]
[424371366,1780805440000,-712.97,0.00019178,2]
[424371399,1780805440000,-500.0,0.00019178,2]
[424371342,1780805440000,-569.96,0.00019178,2]
[424371343,1780805440000,-500.0,0.00019178,2]
[424371347,1780805440000,-502.78,0.00019178,2]
[424371344,1780805440000,-500.0,0.00019178,2]
[424371345,1780805440000,-500.0,0.00019178,2]
[424371348,1780805440000,-500.0,0.00019178,2]
[424371349,1780805440000,-500.0,0.00019178,2]
[424371350,1780805440000,-500.0,0.00019178,2]
[424371353,1780805440000,-500.0,0.00019178,2]
[424371352,1780805440000,-324.2608318,0.00019178,2]
[424371351,1780805440000,-175.7391682,0.00019178,2]
[424371355,1780805440000,-783.02,0.00019178,2]
[424371354,1780805440000,-500.0,0.00019178,2]
[424371356,1780805440000,-1765.11,0.00019178,2]
[424371357,1780805440000,-1706.38,0.00019178,2]
[424371358,1780805440000,-500.0,0.00019178,2]
[424371360,1780805440000,-699.34,0.00019178,2]
[424371359,1780805440000,-500.0,0.00019178,2]
[424371361,1780805440000,-500.0,0.00019178,2]
[424371363,1780805440000,-500.0,0.00019178,2]
[424371362,1780805440000,-1954.4,0.00019178,2]
[424371364,1780805440000,-500.0,0.00019178,2]
[424371365,1780805440000,-1232.43,0.00019178,2]
[424371367,1780805440000,-500.0,0.00019178,2]
[424371368,1780805440000,-534.44,0.00019178,2]
[424371397,1780805440000,-4259.67,0.00019178,2]
[424371424,1780805440000,-500.0,0.00019178,2]
[424371395,1780805440000,-500.0,0.00019178,2]
[424371432,1780805440000,-721.45,0.00019178,2]
[424371433,1780805440000,-500.0,0.00019178,2]
[424371434,1780805440000,-500.0,0.00019178,2]
[424371437,1780805440000,-500.0,0.00019178,2]
[424371440,1780805440000,-500.0,0.00019178,2]
[424371435,1780805440000,-3827.97,0.00019178,2]
[424371438,1780805440000,-500.0,0.00019178,2]
[424371439,1780805440000,-500.0,0.00019178,2]
[424371436,1780805440000,-500.0,0.00019178,2]
[424371441,1780805440000,-500.0,0.00019178,2]
[424371442,1780805440000,-570.6,0.00019178,2]
[424371430,1780805440000,-2135.39,0.00019178,2]
[424371451,1780805440000,-1168.45,0.00019178,2]
[424371449,1780805440000,-500.0,0.00019178,2]
[424371448,1780805440000,-500.0,0.00019178,2]
[424371443,1780805440000,-283.84319128,0.00019178,2]
[424371446,1780805440000,-500.0,0.00019178,2]
[424371450,1780805440000,-500.0,0.00019178,2]
[424371447,1780805440000,-500.0,0.00019178,2]
[424371452,1780805440000,-500.0,0.00019178,2]
[424371453,1780805440000,-1397.15,0.00019178,2]
[424371454,1780805440000,-500.0,0.00019178,2]
[424371455,1780805440000,-500.0,0.00019178,2]
[424371398,1780805440000,-500.0,0.00019178,2]
[424371444,1780805440000,-1309.0,0.00019178,2]
[424371431,1780805440000,-500.0,0.00019178,2]
[424371445,1780805440000,-500.0,0.00019178,2]
[424371427,1780805440000,-777.31,0.00019178,2]
[424371403,1780805440000,-491.56213205,0.00019178,2]
[424371429,1780805440000,-2421.1,0.00019178,2]
[424371402,1780805440000,-500.0,0.00019178,2]
[424371401,1780805440000,-500.0,0.00019178,2]
[424371405,1780805440000,-1580.01,0.00019178,2]
[424371407,1780805440000,-500.0,0.00019178,2]
[424371406,1780805440000,-1000.0,0.00019178,2]
[424371408,1780805440000,-1036.84,0.00019178,2]
[424371410,1780805440000,-500.0,0.00019178,2]
[424371413,1780805440000,-500.0,0.00019178,2]
[424371411,1780805440000,-522.8563583,0.00019178,2]
[424371412,1780805440000,-1566.8,0.00019178,2]
[424371417,1780805440000,-500.0,0.00019178,2]
[424371428,1780805440000,-500.0,0.00019178,2]
[424371409,1780805440000,-500.0,0.00019178,2]
[424371416,1780805440000,-500.0,0.00019178,2]
[424371415,1780805440000,-222.92084855,0.00019178,2]
[424371420,1780805440000,-500.0,0.00019178,2]
[424371418,1780805440000,-1117.47,0.00019178,2]
[424371421,1780805440000,-500.0,0.00019178,2]
[424371422,1780805440000,-681.07,0.00019178,2]
[424371419,1780805440000,-500.0,0.00019178,2]
[424371425,1780805440000,-500.0,0.00019178,2]
[424371423,1780805440000,-500.0,0.00019178,2]
[424371414,1780805440000,-859.69,0.00019178,2]
[424371426,1780805440000,-500.0,0.00019178,2]
[424371539,1780805441000,-500.0,0.00019178,2]
[424371543,1780805441000,-500.0,0.00019178,2]
[424371507,1780805441000,-500.0,0.00019178,2]
[424371541,1780805441000,-1481.92,0.00019178,2]
[424371527,1780805441000,-671.05,0.00019178,2]